[Event "25th Troya Open 2017"]
[Site "Canakkale"]
[Date "2017.08.11"]
[Round "7.7"]
[White "Karaahmetoglu, Ege"]
[Black "Inan, Canberk"]
[Result "1/2-1/2"]
[ECO "B02"]
[WhiteElo "2086"]
[BlackElo "1777"]
[Annotator "NA RC"]
[PlyCount "84"]
[EventCountry "TUR"]
[SourceTitle "playchess.com"]
[Source "ChessBase"]
[SourceQuality "1"]
[TimeControl "5400+30"]

{[%evp 12,79,0,4,-8,-24,19,29,21,16,50,0,-15,6,5,0,0,3,14,-49,-9,0,-10,-12,18,1,41,4,35,-400,32767,32767,32767,-14,0,-17,-17,-25,-40,-48,-43,-49,-48,-83,-52,-56,-3,-7,20,17,17,10,13,0,0,-27,-18,-22,30,12,11,0,0,-10,-6,-8,-8,-19,-15,-15]} 1. e4 {[%emt 0:00:30]} Nf6 {[%emt 0:01:00]} 2. Nc3 {[%emt 0:00:30]} d5 {[%emt 0:00:30]} 3. exd5 {[%emt 0:00:30]} Nxd5 {[%emt 0:00:30]} 4. d4 {[%emt 0:00:30]} Nxc3 {[%emt 0:00:30]} 5. bxc3 {[%emt 0:00:30]} g6 {[%emt 0:00:00]} 6. Nf3 {[%emt 0:02:30]} Bg7 {[%emt 0:00:00] LiveBook: 13 Games} 7. Ba3 {[%emt 0:01:30] B02: Alekhine's Defence: Chase Variation and lines with early Nc3} O-O {[%emt 0:02:30]} 8. Bc4 {[%emt 0:01:30]} (8. Be2 Nd7 9. O-O Nb6 10. Re1 Re8 11. Bd3 c6 12. Qd2 Qc7 13. h3 Be6 14. Rxe6 fxe6 {½-½ (47) Peng,D (2270)-Colas,J (2323) Chicago 2017}) 8... c6 $146 {[%emt 0:09:30]} ({Predecessor:} 8... Nc6 9. O-O Na5 10. Bd3 Re8 11. Re1 Be6 12. Bb4 Nc6 13. Rxe6 fxe6 14. Ng5 Qd5 15. Qg4 Nxb4 16. cxb4 Bxd4 {1-0 (61) Ranfagni,S (2034)-Lazzaroni,F (1622) Castelli Calepio 2007}) 9. O-O {[%emt 0:01:30]} Re8 {[%emt 0:02:30]} 10. Re1 {[%emt 0:02:30]} e6 {[%emt 0:01:30]} 11. Qd2 {[%emt 0:03:30]} Nd7 {[%emt 0:04:30]} 12. Rad1 {[%emt 0:06:30]} b5 {[%emt 0:05:30]} 13. Bd3 {[%emt 0:00:00]} Qc7 {[%emt 0:07:30]} 14. Qg5 {[%emt 0:13:00]} Bb7 {[%emt 0:07:30]} 15. c4 {[%emt 0:02:30]} Bf6 {[%emt 0:03:30]} (15... c5 $5) 16. Qg3 {[%emt 0:02:30]} Qxg3 {[%emt 0:07:30]} 17. hxg3 {[%emt 0:00:00]} bxc4 {[%emt 0:01:30]} 18. Bxc4 {[%emt 0:00:00]} Nb6 {[%emt 0:00:30]} 19. Bf1 {[%emt 0:03:30]} Be7 {[%emt 0:07:30]} 20. Bxe7 {[%emt 0:05:30]} (20. Ne5 $2 {[%emt 0:05:30][%mdl 8192]}) (20. Re3 $14 {keeps the upper hand.}) 20... Rxe7 {[%emt 0:00:30]} 21. Ne5 {[%emt 0:00:30]} Rd8 {[%emt 0:00:30]} 22. Be2 {[%emt 0:03:30]} f6 {[%emt 0:06:30]} 23. Ng4 {[%emt 0:01:30]} Kg7 {[%emt 0:00:30]} 24. Bf3 {[%emt 0:00:30]} h5 {[%emt 0:01:30]} 25. Ne3 {[%emt 0:00:30]} Red7 {[%emt 0:01:30]} 26. c3 {[%emt 0:00:00]} Na4 {[%emt 0:02:30]} 27. Nc2 {[%emt 0:05:00]} Nxc3 {[%emt 0:05:30]} 28. Rd3 {[%emt 0:00:30]} Nd5 {[%emt 0:01:30]} ({Don't blunder} 28... Nxa2 $2 29. Ra3 $18) (28... Nb5 $15 29. Rb3 Rc7) 29. Rxe6 {[%emt 0:00:30]} Nc7 {[%emt 0:02:59]} 30. Re1 {[%emt 0:00:30]} Kf7 {[%emt 0:00:56]} 31. Rb3 {[%emt 0:02:30]} Ne6 {[%emt 0:02:06]} 32. Be2 {[%emt 0:00:30]} c5 {[%emt 0:01:22]} 33. Rxb7 {[%emt 0:15:30]} Rxb7 {[%emt 0:00:02]} 34. Bc4 {[%emt 0:00:00]} cxd4 {[%emt 0:00:12]} 35. Rxe6 {[%emt 0:00:00]} Kg7 {[%emt 0:01:21]} 36. Bd3 {[%emt 0:00:00]} Rb1+ {[%emt 0:01:42]} 37. Ne1 {[%emt 0:01:00]} Ra1 {[%emt 0:00:26]} 38. Re2 {[%emt 0:01:30]} Rc8 {[%emt 0:00:23]} 39. f4 {[%emt 0:01:30]} Rc3 {[%emt 0:00:40]} 40. Kf2 $11 {[%emt 0:00:30]} Rxe1 {[%emt 0:02:53]} 41. Rxe1 {[%emt 0:00:30]} Rxd3 {[%emt 0:00:30]} 42. Re7+ {[%emt 0:00:30]} Kh6 {[%emt 0:01:53]} 1/2-1/2

[Event "25th Troya Open 2017"]
[Site "Canakkale"]
[Date "2017.08.11"]
[Round "7.9"]
[White "Sar, Can"]
[Black "Konusoglu, Kemal Safa"]
[Result "1-0"]
[ECO "B33"]
[WhiteElo "1619"]
[BlackElo "1555"]
[Annotator "NA RC"]
[PlyCount "65"]
[EventCountry "TUR"]
[SourceTitle "playchess.com"]
[Source "ChessBase"]
[SourceQuality "1"]
[TimeControl "5400+30"]

1. e4 {[%emt 0:00:30]} c5 {[%emt 0:01:00]} 2. Nf3 {[%emt 0:00:30]} Nc6 {[%emt 0:00:30]} 3. Nc3 {[%emt 0:00:30]} Nf6 {[%emt 0:00:30]} 4. d4 {[%emt 0:00:30]} cxd4 {[%emt 0:00:30]} 5. Nxd4 {[%emt 0:00:30]} e5 {[%emt 0:00:00]} 6. Ndb5 {[%emt 0:02:30]} d6 {[%emt 0:00:00]} 7. Bg5 {[%emt 0:03:30]} a6 {[%emt 0:00:00]} 8. Na3 {[%emt 0:04:30]} b5 {[%emt 0:00:00]} 9. Nd5 {[%emt 0:00:30]} Be7 {[%emt 0:00:00]} 10. Bxf6 {[%emt 0:02:30]} Bxf6 {[%emt 0:00:00]} 11. Bd3 {[%emt 0:01:30]} O-O {[%emt 0:00:00]} 12. O-O {[%emt 0:00:00]} Bg5 {[%emt 0:01:00]} 13. c4 {[%emt 0:08:00]} b4 {[%emt 0:01:30]} 14. Nc2 {[%emt 0:00:30]} a5 {[%emt 0:00:30]} 15. Nce3 {[%emt 0:11:30]} Be6 {[%emt 0:00:30]} 16. Nf5 {[%emt 0:04:30]} g6 {[%emt 0:06:30]} 17. Nfe3 {[%emt 0:02:30]} Ne7 {[%emt 0:01:30]} 18. Qf3 {[%emt 0:01:30]} Bxd5 {[%emt 0:05:30]} 19. cxd5 {[%emt 0:01:30]} f5 {[%emt 0:12:30]} 20. exf5 {[%emt 0:01:30]} Bxe3 {[%emt 0:00:30]} 21. fxe3 {[%emt 0:04:30]} Nxf5 {[%emt 0:05:30]} 22. Qh3 {[%emt 0:00:30]} Qg5 {[%emt 0:03:30]} 23. Rf3 {[%emt 0:05:30]} Rae8 {[%emt 0:04:30]} 24. Be4 {[%emt 0:00:30]} Nh4 {[%emt 0:16:30]} 25. Rff1 {[%emt 0:03:30]} Nf5 {[%emt 0:06:30]} 26. Rae1 {[%emt 0:01:30]} Rf7 {[%emt 0:02:30]} 27. Rf3 {[%emt 0:05:30]} Ref8 {[%emt 0:07:30]} 28. Ref1 {[%emt 0:07:30]} Nxe3 {[%emt 0:19:22]} 29. Rxf7 {[%emt 0:00:30]} Rxf7 {[%emt 0:00:00]} 30. Rxf7 {[%emt 0:00:30]} Kxf7 {[%emt 0:00:00]} 31. Qxh7+ {[%emt 0:00:00]} Kf8 {[%emt 0:00:41]} 32. h4 {[%emt 0:05:00]} Qf6 {[%emt 0:02:31]} 33. Qh6+ {[%emt 0:00:30]} 1-0

[Event "25th Troya Open 2017"]
[Site "Canakkale"]
[Date "2017.08.11"]
[Round "7.10"]
[White "Sozen, Abdullah"]
[Black "Var, Sefa"]
[Result "1-0"]
[ECO "D03"]
[WhiteElo "1629"]
[BlackElo "1626"]
[Annotator "NA RC"]
[PlyCount "67"]
[EventCountry "TUR"]
[SourceTitle "playchess.com"]
[Source "ChessBase"]
[SourceQuality "1"]
[TimeControl "5400+30"]

1. d4 {[%emt 0:00:30]} d5 {[%emt 0:01:00]} 2. Nf3 {[%emt 0:00:30]} Nf6 {[%emt 0:00:30]} 3. Bg5 {[%emt 0:00:00]} Ne4 {[%emt 0:03:30]} 4. Bf4 {[%emt 0:00:00]} c5 {[%emt 0:05:30]} 5. c3 {[%emt 0:02:30]} Nc6 {[%emt 0:04:30]} 6. e3 {[%emt 0:01:30]} Qb6 {[%emt 0:04:30]} 7. Qc2 {[%emt 0:02:30]} Bf5 {[%emt 0:00:30]} 8. dxc5 {[%emt 0:09:30]} Qxc5 {[%emt 0:02:30]} 9. Qb3 {[%emt 0:04:30]} b6 {[%emt 0:21:30]} 10. Bb5 {[%emt 0:10:30]} a6 {[%emt 0:00:30]} 11. Bxc6+ {[%emt 0:00:30]} Qxc6 {[%emt 0:00:30]} 12. Nd4 {[%emt 0:00:30]} Qd7 {[%emt 0:05:30]} 13. Nxf5 {[%emt 0:01:30]} Qxf5 {[%emt 0:00:30]} 14. Qxb6 {[%emt 0:00:30]} Qd7 {[%emt 0:02:30]} 15. f3 {[%emt 0:02:30]} Nf6 {[%emt 0:01:30]} 16. O-O {[%emt 0:02:30]} e6 {[%emt 0:00:30]} 17. Nd2 {[%emt 0:01:30]} Be7 {[%emt 0:03:30]} 18. Qc7 {[%emt 0:01:30]} Qxc7 {[%emt 0:00:30]} 19. Bxc7 {[%emt 0:00:30]} Kd7 {[%emt 0:00:30]} 20. Bg3 {[%emt 0:00:00]} Nh5 {[%emt 0:03:30]} 21. Bf2 {[%emt 0:00:00]} Rab8 {[%emt 0:00:30]} 22. b3 {[%emt 0:01:30]} Rhc8 {[%emt 0:00:30]} 23. c4 {[%emt 0:01:30]} Bb4 {[%emt 0:05:30]} 24. Rfd1 {[%emt 0:01:30]} Nf6 {[%emt 0:01:30]} 25. e4 {[%emt 0:04:30]} Ke8 {[%emt 0:04:30]} 26. exd5 {[%emt 0:01:30]} exd5 {[%emt 0:00:30]} 27. cxd5 {[%emt 0:01:30]} Nxd5 {[%emt 0:01:30]} 28. Nc4 {[%emt 0:02:30]} Rd8 {[%emt 0:03:30]} 29. Kf1 {[%emt 0:03:30]} f6 {[%emt 0:01:30]} 30. Rac1 {[%emt 0:03:30]} Rb7 {[%emt 0:08:49]} 31. a3 {[%emt 0:02:30]} Be7 {[%emt 0:00:19]} 32. b4 {[%emt 0:00:30]} Nf4 {[%emt 0:01:22]} 33. Rxd8+ {[%emt 0:01:30]} Bxd8 {[%emt 0:00:16]} 34. Nd6+ {[%emt 0:00:30]} 1-0

[Event "25th Troya Open 2017"]
[Site "Canakkale"]
[Date "2017.08.11"]
[Round "7.11"]
[White "Vursan, Emre Can"]
[Black "Aydogdu, Selcan Ayberk"]
[Result "1-0"]
[ECO "D01"]
[WhiteElo "1696"]
[BlackElo "1539"]
[Annotator "NA RC"]
[PlyCount "111"]
[EventCountry "TUR"]
[SourceTitle "playchess.com"]
[Source "ChessBase"]
[SourceQuality "1"]
[TimeControl "5400+30"]

1. d4 {[%emt 0:12:30]} Nf6 {[%emt 0:01:00]} 2. Nc3 {[%emt 0:00:30]} d5 {[%emt 0:00:30]} 3. Bg5 {[%emt 0:00:00]} Nbd7 {[%emt 0:00:30]} 4. f3 {[%emt 0:01:00]} e6 {[%emt 0:01:30]} 5. e4 {[%emt 0:00:30]} Be7 {[%emt 0:01:30]} 6. e5 {[%emt 0:00:00]} Ng8 {[%emt 0:01:30]} 7. Bxe7 {[%emt 0:00:00]} Nxe7 {[%emt 0:00:30]} 8. Bd3 {[%emt 0:00:30]} a6 {[%emt 0:00:30]} 9. Qd2 {[%emt 0:00:00]} c5 {[%emt 0:01:30]} 10. dxc5 {[%emt 0:01:00]} Nxe5 {[%emt 0:01:30]} 11. Nge2 {[%emt 0:06:30]} Bd7 {[%emt 0:03:30]} 12. O-O {[%emt 0:00:30]} Rc8 {[%emt 0:09:30]} 13. Qe3 {[%emt 0:01:30]} Qc7 {[%emt 0:04:30]} 14. b4 {[%emt 0:01:30]} O-O {[%emt 0:02:30]} 15. Nc1 {[%emt 0:32:30]} Rfd8 {[%emt 0:10:30]} 16. N3e2 {[%emt 0:01:30]} Bc6 {[%emt 0:07:30]} 17. Nd4 {[%emt 0:03:30]} N5g6 {[%emt 0:04:30]} 18. f4 {[%emt 0:02:30]} Re8 {[%emt 0:06:30]} 19. Ncb3 {[%emt 0:04:30]} e5 {[%emt 0:03:30]} 20. fxe5 {[%emt 0:00:30]} Nxe5 {[%emt 0:01:30]} 21. Qh3 {[%emt 0:03:30]} Nxd3 {[%emt 0:02:30]} 22. cxd3 {[%emt 0:00:30]} Ng6 {[%emt 0:05:30]} 23. Nxc6 {[%emt 0:07:47]} bxc6 {[%emt 0:01:30]} 24. Rae1 {[%emt 0:01:07]} Rcd8 {[%emt 0:03:30]} 25. Nd4 {[%emt 0:01:36]} Re5 {[%emt 0:05:30]} 26. Rxe5 {[%emt 0:01:37]} Nxe5 {[%emt 0:00:00]} 27. Nf5 {[%emt 0:01:30]} Ng6 {[%emt 0:04:33]} 28. Nd6 {[%emt 0:00:32]} Rf8 {[%emt 0:01:27]} 29. Qf5 {[%emt 0:01:37]} Qe7 {[%emt 0:02:02]} 30. Qf2 {[%emt 0:03:22]} Ne5 {[%emt 0:00:30]} 31. Qg3 {[%emt 0:00:30]} f6 {[%emt 0:00:30]} 32. Nf5 {[%emt 0:00:30]} Qd7 {[%emt 0:00:30]} 33. Nh6+ {[%emt 0:00:30]} Kh8 {[%emt 0:00:30]} 34. Qxe5 {[%emt 0:04:40]} Re8 {[%emt 0:06:47]} 35. Qf5 {[%emt 0:00:30]} Qxf5 {[%emt 0:00:30]} 36. Nxf5 {[%emt 0:00:30]} Re2 {[%emt 0:00:30]} 37. a3 {[%emt 0:00:30]} Ra2 {[%emt 0:00:30]} 38. Re1 {[%emt 0:00:30]} h6 {[%emt 0:01:38]} 39. Re8+ {[%emt 0:00:00]} Kh7 {[%emt 0:00:12]} 40. Re7 {[%emt 0:00:00]} Kg6 {[%emt 0:01:05]} 41. Nd4 {[%emt 0:00:25]} Rxa3 {[%emt 0:01:00]} 42. Re3 {[%emt 0:00:04]} a5 {[%emt 0:00:02]} 43. Nxc6 {[%emt 0:00:37]} a4 {[%emt 0:00:14]} 44. Ne7+ {[%emt 0:00:12]} Kf7 {[%emt 0:00:13]} 45. Nxd5 {[%emt 0:00:04]} Ra1+ {[%emt 0:00:03]} 46. Kf2 {[%emt 0:00:37]} a3 {[%emt 0:00:08]} 47. Re7+ {[%emt 0:00:10]} Kf8 {[%emt 0:00:15]} 48. Ra7 {[%emt 0:00:28]} Rh1 {[%emt 0:00:22]} 49. c6 {[%emt 0:00:07]} Rc1 {[%emt 0:00:09]} 50. c7 {[%emt 0:00:14]} Rc2+ {[%emt 0:00:07]} 51. Kf3 {[%emt 0:00:04]} a2 {[%emt 0:00:11]} 52. Rxa2 {[%emt 0:00:08]} Rxa2 {[%emt 0:00:33]} 53. c8=Q+ {[%emt 0:00:06]} Kf7 {[%emt 0:00:00]} 54. Qd7+ {[%emt 0:00:17]} Kg6 {[%emt 0:00:00]} 55. Nf4+ {[%emt 0:00:06]} Kg5 {[%emt 0:00:00]} 56. Qg4# {[%emt 0:00:07]} 1-0

[Event "25th Troya Open 2017"]
[Site "Canakkale"]
[Date "2017.08.11"]
[Round "7.12"]
[White "Ilkbahar, Nimet Seray"]
[Black "Ozkurt, Kutay"]
[Result "0-1"]
[ECO "B01"]
[WhiteElo "1622"]
[BlackElo "1686"]
[Annotator "NA RC"]
[PlyCount "70"]
[EventCountry "TUR"]
[SourceTitle "playchess.com"]
[Source "ChessBase"]
[SourceQuality "1"]
[TimeControl "5400+30"]

1. e4 {[%emt 0:00:30]} d5 {[%emt 0:01:00]} 2. exd5 {[%emt 0:00:30]} Qxd5 {[%emt 0:00:30]} 3. Nc3 {[%emt 0:00:30]} Qd8 {[%emt 0:00:30]} 4. d4 {[%emt 0:00:30]} Nf6 {[%emt 0:00:00]} 5. Bc4 {[%emt 0:02:30]} c6 {[%emt 0:00:00]} 6. Nf3 {[%emt 0:01:30]} Bf5 {[%emt 0:00:00]} 7. Qe2 {[%emt 0:05:30]} e6 {[%emt 0:02:00]} 8. Bd2 {[%emt 0:05:30]} Bxc2 {[%emt 0:03:30]} 9. d5 {[%emt 0:01:30]} cxd5 {[%emt 0:05:30]} 10. Bb5+ {[%emt 0:00:30]} Nbd7 {[%emt 0:00:00]} 11. Bg5 {[%emt 0:06:30]} d4 {[%emt 0:08:00]} 12. Qxc2 {[%emt 0:08:30]} dxc3 {[%emt 0:00:30]} 13. Bxd7+ {[%emt 0:43:03]} Qxd7 {[%emt 0:00:30]} 14. Bxf6 {[%emt 0:01:37]} gxf6 {[%emt 0:00:30]} 15. Rd1 {[%emt 0:01:13]} Qc6 {[%emt 0:01:30]} 16. Nd4 {[%emt 0:02:38]} Qc4 {[%emt 0:01:30]} 17. bxc3 {[%emt 0:01:25]} Rd8 {[%emt 0:00:30]} 18. Qb3 {[%emt 0:03:57]} Qxb3 {[%emt 0:00:30]} 19. axb3 {[%emt 0:00:07]} Bc5 {[%emt 0:00:30]} 20. O-O {[%emt 0:01:14]} Bxd4 {[%emt 0:00:00]} 21. Rxd4 {[%emt 0:00:00]} Rxd4 {[%emt 0:00:00]} 22. cxd4 {[%emt 0:00:00]} Ke7 {[%emt 0:00:30]} 23. Rc1 {[%emt 0:00:06]} Rd8 {[%emt 0:00:30]} 24. Rd1 {[%emt 0:00:30]} Rd5 {[%emt 0:00:30]} 25. f4 {[%emt 0:00:30]} Kd6 {[%emt 0:00:30]} 26. Kf2 {[%emt 0:00:30]} Ra5 {[%emt 0:00:30]} 27. Ke3 {[%emt 0:00:30]} Ra2 {[%emt 0:00:30]} 28. Kf3 {[%emt 0:00:30]} a5 {[%emt 0:00:30]} 29. h3 {[%emt 0:00:30]} Ra3 {[%emt 0:00:30]} 30. Rb1 {[%emt 0:00:30]} a4 {[%emt 0:00:30]} 31. Ke2 {[%emt 0:00:30]} Rxb3 {[%emt 0:00:00]} 32. Ra1 {[%emt 0:08:53]} a3 {[%emt 0:00:00]} 33. Kd2 {[%emt 0:00:06]} b5 {[%emt 0:00:00]} 34. Kc2 {[%emt 0:00:38]} Rb2+ {[%emt 0:00:00]} 35. Kc3 {[%emt 0:00:38]} b4+ {[%emt 0:00:00]} 0-1